bitfinex/quotes_ETHUSD_20241030
["timestamp","ask_amount","ask_price","bid_price","bid_amount"]
[1730275176748,3.74681,2669.0,2668.5,4.53271]
[1730275177241,7.00057928,2669.1,2668.5,0.7853]
[1730275177430,3.74673,2669.0,2668.6,3.74727]
[1730275177745,3.74645,2669.2,2668.8,3.74698]
[1730275178107,3.7463,2669.3,2668.8,3.74698]
[1730275178343,7.79192928,2669.4,2668.8,3.74698]
[1730275178638,3.7463,2669.3,2668.8,3.74698]
[1730275179000,3.74613,2669.5,2669.0,0.8179]
[1730275179211,3.74613,2669.5,2669.0,4.5645]
[1730275179806,3.74638,2669.3,2669.0,0.8179]
[1730275180246,7.4928,2669.3,2669.0,0.8179]
[1730275182118,3.74638,2669.3,2669.0,0.8179]
[1730275184750,7.49276,2669.3,2669.0,0.8179]
[1730275185134,3.74638,2669.3,2669.0,0.8179]
[1730275186051,3.74601,2669.5,2669.0,5.021022]
[1730275186423,5.20199508,2669.5,2669.0,5.021022]
[1730275186853,3.74588,2669.6,2669.0,5.021022]
[1730275186854,0.7589,2669.7,2669.0,1.274382]
[1730275187150,5.20186508,2669.6,2669.1,3.74657]
[1730275187453,5.20186508,2669.6,2669.0,1.274382]
[1730275187454,3.74605,2669.5,2669.3,0.7509]
[1730275188227,5.20186508,2669.6,2669.3,0.7509]
[1730275188429,1.45598508,2669.6,2669.3,0.7509]
[1730275188631,3.74604,2669.5,2669.3,0.7509]
[1730275189471,1.45598508,2669.4,2669.3,0.7509]
[1730275189951,5.20214508,2669.4,2669.1,0.7556]
[1730275190721,1.45598508,2669.4,2669.1,0.7556]
[1730275190916,5.20222508,2669.4,2669.1,0.7556]
[1730275194672,5.20222508,2669.4,2668.8,0.8097]
[1730275195266,3.74645,2669.2,2668.8,0.8097]
[1730275196931,3.74645,2669.2,2668.8,4.55669]
[1730275197131,3.74645,2669.2,2668.8,5.387062]
[1730275199129,5.20244508,2669.2,2668.8,0.8097]
[1730275199551,8.94901508,2669.2,2668.8,0.8097]
[1730275199756,5.20244508,2669.2,2668.8,0.8097]
[1730275200161,8.94895508,2669.2,2668.8,0.8097]
[1730275200330,5.20244508,2669.2,2668.8,0.8097]
[1730275200566,3.74646,2669.2,2668.8,0.8097]
[1730275201385,3.74658,2669.1,2668.8,0.8097]
[1730275203466,3.74646,2669.2,2668.8,0.8097]
[1730275204127,3.74665,2669.1,2668.8,0.8097]
[1730275204658,3.74646,2669.2,2668.8,1.42242909]
[1730275205867,3.74646,2669.2,2668.8,5.16940909]
[1730275206071,3.74646,2669.2,2668.8,4.55668]
[1730275207078,3.7463,2669.3,2668.8,4.55668]
[1730275207371,5.20217508,2669.4,2668.8,4.55668]
[1730275207372,3.7465,2669.2,2668.8,0.8097]
[1730275207540,3.74666,2669.1,2668.8,0.8097]
[1730275207739,3.7465,2669.2,2668.8,0.8097]
[1730275208268,3.7465,2669.2,2668.8,4.55667]
[1730275208672,3.7465,2669.2,2668.8,0.8097]
[1730275209281,3.74659,2669.1,2668.8,0.8097]
[1730275210084,3.74644,2669.2,2668.8,0.8097]
[1730275210448,3.7463,2669.3,2668.8,0.8097]
[1730275210652,1.45598508,2669.0,2668.8,0.8097]
[1730275210983,3.747,2668.8,2668.4,0.7831]
[1730275212069,5.20271508,2669.0,2668.4,0.7831]
[1730275212283,3.74673,2669.0,2668.5,3.74742]
[1730275212453,4.50415,2669.1,2668.6,4.56821]
[1730275213553,3.74672,2669.0,2668.6,0.821]
[1730275214073,3.74672,2669.0,2668.6,4.56827]
[1730275214279,3.74645,2669.2,2668.7,3.7471]
[1730275215497,3.74645,2669.2,2668.6,1.652581]
[1730275215677,3.7466,2669.1,2668.6,4.56824]
[1730275216173,5.20243508,2669.2,2668.6,0.821]
[1730275216377,5.20243508,2669.2,2668.7,3.74713]
[1730275217986,8.94896508,2669.2,2668.7,3.74713]
[1730275218196,3.74665,2669.1,2668.6,4.56827]
[1730275218557,5.20243508,2669.2,2668.7,3.74711]
[1730275220059,0.7509,2669.3,2668.8,3.74694]
[1730275220398,0.7509,2669.3,2668.9,0.776]
[1730275220569,0.7509,2669.3,2668.9,4.52284]
[1730275220769,0.8222,2669.8,2669.4,3.74611]
[1730275221085,0.8222,2669.8,2668.9,5.20279508]
[1730275221086,0.58630619,2669.9,2669.5,4.497]
[1730275221264,5.96961508,2670.0,2669.5,4.497]
[1730275221455,5.20141508,2670.0,2669.5,4.497]
[1730275221659,1.45598508,2670.0,2669.6,3.74578]
[1730275221854,1.45598508,2670.0,2669.5,8.24293]
[1730275222096,1.45598508,2670.0,2669.5,0.751]
[1730275222294,1.45598508,2669.7,2669.3,3.74623]
[1730275222600,3.74567,2669.8,2669.3,0.7769]
[1730275222800,0.78252304,2669.7,2669.3,0.7769]
[1730275223093,3.74588,2669.6,2669.3,0.7769]
[1730275223455,4.52826304,2669.7,2669.3,0.7769]
[1730275225405,0.78252304,2669.7,2669.3,0.7769]
[1730275225572,3.74574,2669.7,2669.3,0.7769]
[1730275226106,3.74567,2669.8,2669.3,0.7769]
[1730275226283,3.74567,2669.8,2669.3,4.52311]
[1730275229093,3.74567,2669.8,2669.3,8.26933]
[1730275229413,3.74554,2669.9,2669.4,0.8277]
[1730275229711,3.74554,2669.9,2669.4,4.57378]
[1730275229895,3.74541,2670.0,2669.5,3.746]
[1730275230211,3.74541,2670.0,2669.5,3.74592]
[1730275231513,3.74546,2669.9,2669.5,3.74592]
[1730275231704,3.74541,2670.0,2669.5,3.74592]
[1730275231912,3.74553,2669.9,2669.4,0.8277]
[1730275232119,3.74555,2669.9,2669.4,0.8277]
[1730275232611,0.7893,2669.9,2669.4,0.8277]
[1730275232815,3.74578,2669.7,2669.4,0.8277]
[1730275234306,4.04196042,2669.9,2669.4,0.8277]
[1730275234502,3.74565,2669.8,2669.4,0.8277]
[1730275235182,6.99824042,2669.9,2669.4,0.8277]
[1730275235388,6.99824042,2669.9,2669.4,4.57375]
[1730275235780,3.74558,2669.9,2669.4,5.405753]
[1730275236801,3.74558,2669.9,2669.5,3.746]
[1730275237007,3.74558,2669.9,2669.4,5.405853]
[1730275237518,7.49116,2669.9,2669.4,0.8277]
[1730275237723,7.49112,2669.9,2669.4,0.8277]
[1730275237900,3.74554,2669.9,2669.4,4.57384]
[1730275238301,3.74554,2669.9,2669.5,3.74601]
[1730275238625,3.74532,2670.0,2669.5,3.74601]
[1730275239320,3.8229,2670.4,2669.7,0.8199]
[1730275239626,3.74498,2670.3,2669.7,4.56561]
[1730275239802,3.74505,2670.2,2669.7,4.56561]
[1730275240495,3.74531,2670.1,2669.7,0.8199]
[1730275240911,3.74505,2670.2,2669.7,0.8199]
[1730275241430,3.74505,2670.2,2669.7,4.56553]
[1730275241595,3.74505,2670.2,2669.7,1.7342285]
[1730275241789,7.82041042,2670.4,2669.9,0.3748]
[1730275241994,6.99751042,2670.4,2669.8,3.74551]
[1730275242190,6.99751042,2670.4,2669.9,0.833]
[1730275242424,6.99750042,2670.4,2669.9,4.57843]
[1730275242625,10.74235042,2670.4,2669.9,1.665394]
[1730275242827,6.99750042,2670.4,2669.9,5.410824]
[1730275244094,3.74457,2670.6,2670.1,4.52074]
[1730275244541,1.4548449,2670.5,2670.1,4.52074]
[1730275244693,1.4548449,2670.5,2670.1,1.6855334]
[1730275245090,1.4548449,2670.5,2670.1,5.4306934]
[1730275245291,1.4548449,2670.5,2670.2,4.52068]
[1730275245543,1.4548449,2670.5,2670.2,0.7757]
[1730275245900,1.4548449,2670.5,2670.2,4.52065]
[1730275246212,1.4548449,2670.5,2670.2,5.347224]
[1730275246597,3.74436,2670.7,2670.2,5.347224]
[1730275247044,3.74436,2670.7,2670.2,5.347234]
[1730275247248,6.99478482,2670.8,2670.3,0.64166565]
[1730275247458,6.99478482,2670.8,2670.3,4.38648565]
[1730275247644,6.99478482,2670.8,2670.4,2.001237]
[1730275247844,6.99478482,2670.8,2670.5,0.64161759]
[1730275249272,4.5357,2671.0,2670.6,0.7538]
[1730275249273,3.74398,2671.0,2670.6,0.7538]
[1730275249873,7.48799,2671.0,2670.7,0.64156954]
[1730275250232,3.74407,2670.9,2670.7,0.64156954]
[1730275251434,3.74398,2671.0,2670.7,0.64156954]
[1730275251632,3.25048482,2671.1,2670.7,0.64156954]
[1730275252141,3.25048482,2671.1,2670.7,4.89980149]
[1730275252348,3.25048482,2671.1,2670.7,1.15555149]
[1730275252871,4.07388482,2671.4,2670.9,0.7942]
[1730275253033,3.74352,2671.3,2670.9,0.7942]
[1730275253375,3.74372,2671.2,2670.9,0.7942]
[1730275253549,3.74372,2671.2,2670.9,0.98917515]
[1730275254479,7.48712,2671.3,2670.9,0.98917515]
[1730275254649,3.74352,2671.3,2670.9,0.98917515]
[1730275255954,3.74364,2671.2,2670.9,0.98917515]
[1730275256854,3.74352,2671.3,2670.9,0.98917515]
[1730275258684,3.74352,2671.3,2671.0,0.47333352]
[1730275258890,3.25048482,2671.4,2671.0,0.47333352]
[1730275259054,0.8234,2671.6,2671.1,3.74376]
[1730275259392,6.99341482,2671.7,2671.2,4.55841]
[1730275259560,6.99341482,2671.7,2671.2,4.55834]
[1730275259760,6.99341482,2671.7,2671.3,4.199324]
[1730275259761,3.25048482,2671.7,2671.3,4.199324]
[1730275259957,3.25048482,2671.7,2671.4,0.8148]
[1730275260353,3.74279,2671.8,2671.4,0.8148]
[1730275260801,3.74274,2671.9,2671.4,0.8148]
[1730275261095,7.48549,2671.9,2671.4,0.8148]
[1730275261264,3.64691,2671.8,2671.4,0.8148]
[1730275261468,3.64691,2671.8,2671.5,0.73903937]
[1730275261674,3.64691,2671.8,2671.4,0.8148]
[1730275262259,6.99286482,2672.1,2671.5,0.8066]
[1730275262487,3.74252,2672.0,2671.5,4.54978]
[1730275262689,6.99286482,2672.1,2671.5,0.8066]
[1730275262690,3.25048482,2672.1,2671.5,0.8066]
[1730275263004,3.7426,2672.0,2671.5,4.54977]
[1730275263495,3.74232,2672.2,2671.5,5.73542002]
[1730275263710,3.74211,2672.3,2671.8,4.53671]
[1730275263862,0.8095,2672.6,2671.8,0.794]
[1730275264060,3.74222,2672.3,2671.8,0.794]
[1730275264260,3.74225,2672.2,2671.8,0.794]
[1730275264564,3.74258,2672.0,2671.8,0.794]
[1730275265702,3.74209,2672.3,2671.8,0.794]
[1730275265859,3.74203,2672.4,2671.8,0.794]
[1730275266056,3.74224,2672.2,2671.8,0.794]
[1730275266466,3.25048482,2672.5,2672.0,0.7627]
[1730275266675,3.74222,2672.3,2672.0,0.7627]
[1730275266875,3.74225,2672.2,2672.0,0.7627]
[1730275267282,7.48411,2672.4,2672.0,0.7627]
[1730275267487,3.74203,2672.4,2672.0,0.7627]
[1730275268291,3.7421,2672.3,2672.0,0.7627]
[1730275268498,3.74322,2671.5,2671.1,0.8134]
[1730275268694,7.48651,2671.5,2671.1,0.8134]
[1730275268894,7.48652,2671.5,2671.1,0.8134]
[1730275269083,3.74322,2671.5,2671.1,0.8134]
[1730275269281,3.74322,2671.5,2671.1,1.269123]
[1730275269900,4.56813,2671.7,2671.1,1.269123]
[1730275269901,4.56813,2671.7,2671.1,5.012893]
[1730275270104,3.74307,2671.6,2671.1,5.012893]
[1730275270289,3.74307,2671.6,2671.1,1.269123]
[1730275271198,7.48683,2671.4,2671.1,0.8134]
[1730275271403,3.74336,2671.4,2671.1,0.8134]
[1730275271711,3.74358,2671.3,2671.1,0.8134]
[1730275271885,3.74358,2671.3,2671.2,0.16146685]
[1730275272776,3.74349,2671.3,2671.2,0.16146685]
[1730275273099,3.74349,2671.3,2670.9,0.7874]
[1730275273314,3.74349,2671.3,2670.9,4.53144]
[1730275273471,6.99365482,2671.6,2670.9,5.36463311]
[1730275273472,3.74333,2671.5,2670.9,5.36463311]
[1730275273665,3.74336,2671.4,2670.9,5.36463311]
[1730275273909,3.25048482,2671.9,2671.2,3.74356]
[1730275274116,3.74289,2671.8,2671.3,0.7967]
[1730275274292,3.74315,2671.6,2671.3,0.7967]
[1730275275399,3.74315,2671.6,2671.4,0.08552312]
[1730275277104,3.74293,2671.7,2671.4,0.08552312]
[1730275277317,3.74317,2671.6,2671.4,0.08552312]
[1730275280321,3.74293,2671.7,2671.4,0.08552312]
[1730275280607,3.25048482,2671.9,2671.4,0.08552312]
[1730275280608,3.74274,2671.9,2671.5,0.7506]
[1730275280827,7.48547,2671.9,2671.5,0.7506]
[1730275281012,3.74282,2671.8,2671.5,0.7506]
[1730275281912,3.74273,2671.9,2671.5,0.7506]
[1730275282422,3.74251,2672.0,2671.5,4.49379]
[1730275282735,3.74244,2672.1,2671.7,0.8243]
[1730275282927,3.25048482,2672.2,2671.8,0.08551032]
[1730275282928,3.74224,2672.2,2671.8,0.08551032]
[1730275283221,3.74209,2672.3,2671.9,0.8243]
[1730275283600,3.74209,2672.3,2672.0,0.08550392]
[1730275283995,3.74195,2672.4,2672.0,0.08550392]
[1730275284224,6.99239482,2672.5,2672.0,0.08550392]
[1730275284458,3.74202,2672.4,2672.0,0.08550392]
[1730275286323,6.99229482,2672.5,2672.0,0.55073931]
[1730275286528,6.99229482,2672.5,2672.0,4.29323931]
[1730275287044,0.8331,2672.6,2672.0,4.29323931]
[1730275287045,7.74805482,2672.1,2672.0,0.08550392]
[1730275287195,3.74306,2671.7,2671.3,0.791]
[1730275287399,3.74321,2671.5,2671.3,0.791]
[1730275288265,3.74246,2672.1,2671.3,0.791]
[1730275288424,3.7552,2672.4,2670.8,3.25048482]
[1730275288425,4.00568482,2672.4,2671.7,0.791]
[1730275288626,3.74244,2672.1,2671.7,0.791]
[1730275288858,3.74244,2672.1,2671.8,0.453403]
[1730275289194,3.74218,2672.3,2671.8,0.453403]
[1730275289320,3.74218,2672.3,2671.8,4.196103]
[1730275289524,3.25048482,2672.4,2671.8,0.453403]
[1730275289525,3.74226,2672.2,2671.8,0.453403]
[1730275289754,3.74213,2672.3,2671.9,0.4987193]
[1730275290649,3.74225,2672.2,2671.9,0.4987193]
[1730275290852,3.25048482,2672.4,2671.7,0.791]
[1730275291049,3.74295,2671.7,2671.3,0.8017]
[1730275291265,3.74277,2671.9,2671.3,4.54515]
[1730275291266,3.74283,2671.8,2671.3,4.54515]
[1730275291435,3.74277,2671.9,2671.3,0.8017]
[1730275291640,3.74279,2671.8,2671.3,4.54517]
[1730275291842,3.74277,2671.9,2671.4,4.197787]
[1730275292158,3.74281,2671.8,2671.4,0.454517]
[1730275292524,3.74293,2671.7,2671.4,0.454517]
[1730275292729,3.74272,2671.9,2671.3,0.8017]
[1730275293032,3.74272,2671.9,2671.4,3.74334]
[1730275293764,6.99293482,2672.1,2671.5,0.8214]
[1730275293968,6.99293482,2672.1,2671.5,4.56452]
[1730275294771,10.73541482,2672.1,2671.5,4.56452]
[1730275294980,10.73538482,2672.1,2671.6,0.830786]
[1730275295153,3.74252,2672.0,2671.6,0.830786]
[1730275295734,6.99293482,2672.1,2671.6,0.830786]
[1730275296447,3.74163,2672.7,2672.1,3.74229]
[1730275296648,3.74174,2672.6,2672.2,0.7869]
[1730275297273,4.54214,2672.9,2672.3,3.74209]
[1730275297571,3.74145,2672.8,2672.5,0.7558]
[1730275298365,3.74134,2672.9,2672.5,0.7558]
[1730275299356,3.74133,2672.9,2672.5,0.7558]
[1730275299605,3.74133,2672.9,2672.5,1.205561]
[1730275301487,3.25048482,2673.4,2672.6,0.7701]
[1730275301658,3.74113,2673.0,2672.6,0.7701]
[1730275304397,7.48236,2673.0,2672.6,0.7701]
[1730275304889,3.74113,2673.0,2672.6,0.7701]
[1730275305110,3.74113,2673.0,2672.6,1.221304]
[1730275305465,3.74148,2672.8,2672.4,0.7741]
[1730275305856,7.48298,2672.8,2672.4,0.7741]
[1730275306060,3.74148,2672.8,2672.4,0.7741]
[1730275308886,3.74126,2672.9,2672.4,4.51602]
[1730275309179,3.74126,2672.9,2672.5,0.82581]
[1730275309384,3.7412,2673.0,2672.5,0.82581]
[1730275309593,3.74089,2673.2,2672.6,0.8273]
[1730275309768,3.74089,2673.2,2672.6,4.5689]
[1730275309975,3.74089,2673.2,2672.7,0.91365]
[1730275310999,3.741,2673.1,2672.7,0.91365]
[1730275313662,7.48206,2673.1,2672.7,0.91365]
[1730275314094,4.07638482,2673.4,2672.7,0.91365]
[1730275314095,3.74123,2673.0,2672.7,0.91365]
[1730275314297,3.74153,2672.7,2672.6,0.8273]
[1730275314874,3.74127,2672.9,2672.6,0.8273]
[1730275316976,3.25048482,2673.1,2672.6,0.8273]
[1730275317164,3.7421,2672.3,2672.1,0.793]
[1730275317863,3.74195,2672.4,2672.1,0.793]
[1730275318062,7.48326,2672.7,2672.1,0.793]
[1730275318388,3.74162,2672.7,2672.1,0.793]
[1730275318586,3.74079,2673.3,2672.6,3.74155]
[1730275318788,3.74079,2673.3,2672.7,1.149755]
[1730275319019,0.8289,2673.4,2672.7,1.149755]
[1730275319228,3.74106,2673.1,2672.7,0.7756]
[1730275321429,4.56954,2673.4,2672.8,3.74134]
[1730275321716,3.74083,2673.2,2672.7,4.51703]
[1730275322913,7.48176,2673.2,2672.7,4.51703]
[1730275323506,3.74107,2673.1,2672.7,0.7756]
[1730275323719,3.7412,2673.0,2672.7,1.227329]
[1730275323918,3.7412,2673.0,2672.7,0.7756]
[1730275324282,3.74106,2673.1,2672.7,0.7756]
[1730275325019,3.74112,2673.0,2672.7,0.7756]
[1730275327933,7.48213,2673.1,2672.7,0.7756]
[1730275328344,3.74111,2673.0,2672.7,0.7756]
[1730275329436,3.74106,2673.1,2672.7,1.227331]
[1730275329619,3.74112,2673.0,2672.7,1.227331]
[1730275337226,3.74112,2673.0,2672.7,0.7756]
[1730275339246,3.74087,2673.2,2672.8,3.74135]
[1730275339444,4.56949,2673.4,2672.9,3.74118]
[1730275339610,4.56949,2673.4,2672.7,0.7756]
[1730275339611,3.74071,2673.3,2672.8,3.74139]
[1730275339944,5.19243845,2673.5,2673.0,4.57374]
[1730275341044,0.1275813,2673.6,2673.2,3.74079]
[1730275341239,0.1275813,2673.6,2673.3,0.7913]
[1730275341941,0.1275813,2673.6,2673.5,0.8048]
[1730275345760,3.8678513,2673.6,2673.2,0.771]
[1730275346160,0.1275813,2673.6,2673.2,0.771]
[1730275346570,3.8678613,2673.6,2673.2,0.771]
[1730275346766,3.8678613,2673.6,2673.3,0.45119]
[1730275346983,3.74046,2673.5,2673.3,0.45119]
[1730275347188,3.74046,2673.5,2673.2,0.771]
[1730275347595,3.8678613,2673.6,2673.2,0.771]
[1730275348897,0.1275813,2673.6,2673.2,4.51183]
[1730275349210,0.1275813,2673.6,2673.4,4.50674]
[1730275349411,0.1275813,2673.6,2673.5,5.339141]
[1730275353599,0.1275813,2673.6,2673.5,6.79115945]
[1730275355009,0.1275813,2673.6,2673.5,6.86595487]
[1730275355176,0.1275813,2673.6,2673.5,6.79115945]
[1730275356008,0.1275813,2673.6,2673.5,9.1674779]
[1730275356299,0.1275813,2673.6,2673.5,12.1774779]
[1730275356500,0.1275813,2673.6,2673.5,10.72545945]
[1730275358011,0.1275813,2673.6,2673.5,5.339141]
[1730275358307,0.1275813,2673.6,2673.5,0.824731]
[1730275358519,0.1275813,2673.6,2673.0,1.94579083]
[1730275358520,3.74078,2673.3,2673.0,1.94579083]
[1730275358804,3.74077,2673.3,2673.0,1.94579083]
[1730275359188,3.74097,2673.1,2673.0,1.94579083]
[1730275361036,3.74075,2673.3,2673.0,1.94579083]
[1730275361399,3.7405,2673.5,2673.0,2.72019083]
[1730275361613,0.8156,2673.3,2673.0,1.94579083]
[1730275361833,7.48177,2673.2,2673.0,1.94579083]
[1730275362036,3.74083,2673.2,2673.0,1.94579083]
[1730275362528,3.74097,2673.1,2673.0,1.94579083]
[1730275362939,8.29712,2673.3,2673.0,1.94579083]
[1730275363243,3.74085,2673.2,2673.0,1.94579083]
[1730275363646,3.74085,2673.2,2672.6,3.74157]
[1730275363951,3.74101,2673.1,2672.7,0.374157]
[1730275364120,4.55634,2673.3,2672.7,0.374157]
[1730275364121,4.55634,2673.3,2672.7,4.115637]
[1730275364612,7.48205,2673.1,2672.7,0.374157]
[1730275364931,3.74097,2673.1,2672.7,0.374157]
[1730275365240,8.29719,2673.3,2672.7,4.115677]
[1730275365439,4.55638,2673.3,2672.7,0.374157]
[1730275365601,0.8156,2673.3,2672.8,4.42699867]
[1730275365807,3.7405,2673.5,2672.9,0.07482105]
[1730275366040,3.7405,2673.5,2673.0,3.74104]
[1730275367067,3.7405,2673.5,2672.8,4.42697867]
[1730275367068,7.48103,2673.5,2672.9,3.74121]
[1730275367270,7.48099,2673.5,2672.9,3.74121]
[1730275367483,3.74049,2673.5,2672.9,3.74121]
[1730275367766,3.74049,2673.5,2673.0,3.74104]
[1730275367923,0.8885813,2673.6,2673.1,4.54911]
[1730275368263,0.1275813,2673.6,2673.1,4.54908]
[1730275368473,0.1275813,2673.6,2673.2,0.07480627]
[1730275368644,0.1275813,2673.6,2673.1,4.54906]
[1730275368959,0.1275813,2673.6,2673.2,4.195716]
[1730275369733,0.1275813,2673.6,2673.2,0.454906]
[1730275370110,3.8679813,2673.6,2673.2,0.454906]
[1730275370312,3.74058,2673.4,2672.9,4.63707887]
[1730275370630,3.74058,2673.4,2672.9,0.89592887]
[1730275370631,3.7407,2673.3,2672.9,0.89592887]
[1730275371147,0.8301,2673.4,2672.9,0.89592887]
[1730275371252,0.8301,2673.4,2672.9,3.74113]
[1730275371434,0.8301,2673.4,2673.0,3.74108]
[1730275373240,0.8301,2673.4,2672.9,7.48229]
[1730275373436,0.8301,2673.4,2672.9,3.74113]
[1730275373838,0.8301,2673.4,2673.0,3.74108]
[1730275374144,0.8301,2673.4,2673.0,4.564671]
[1730275374472,0.1275813,2673.6,2673.5,0.7794]
[1730275374781,0.1275813,2673.6,2673.5,4.51981]
[1730275375130,0.1275813,2673.6,2673.1,3.74086]
[1730275375486,0.1275813,2673.6,2673.2,3.74075]
[1730275375632,0.1275813,2673.6,2673.2,4.6087001]
[1730275375978,0.1275813,2673.6,2673.2,0.8679501]
[1730275376358,0.1275813,2673.6,2673.2,4.6087801]
[1730275376537,4.6454713,2673.6,2673.2,0.8679501]
[1730275377770,3.74043,2673.5,2673.2,0.8679501]
[1730275377946,4.6454613,2673.6,2672.9,4.52836]
[1730275378152,3.74045,2673.5,2673.0,3.74104]
[1730275379803,4.6454613,2673.6,2672.7,3.74145]
[1730275379804,0.7678,2673.1,2672.7,3.74145]
[1730275379978,4.5084,2673.4,2672.9,3.74123]
[1730275380499,4.5084,2673.4,2672.8,3.81620876]
[1730275380812,4.5084,2673.4,2672.9,3.74121]
[1730275381114,4.5084,2673.4,2673.0,0.38160288]
[1730275381115,0.7678,2673.4,2673.0,0.38160288]
[1730275381312,3.74077,2673.3,2673.0,0.38160288]
[1730275381613,7.48177,2673.2,2672.7,4.194895]
[1730275381988,3.74098,2673.1,2672.7,0.453455]
[1730275382322,3.74086,2673.2,2672.7,0.453455]
[1730275382323,3.74086,2673.2,2672.7,4.194955]
[1730275382689,7.48182,2673.2,2672.7,4.194955]
[1730275382876,3.74086,2673.2,2672.7,4.194955]
[1730275383076,3.8679213,2673.6,2672.9,3.74122]
[1730275383309,3.8679213,2673.6,2673.0,3.74104]
[1730275383609,0.1275813,2673.6,2673.2,3.74083]
[1730275383920,0.1275813,2673.6,2672.8,1.2489955]
[1730275383921,0.1275813,2673.6,2673.4,3.74046]
[1730275384079,0.1275813,2673.6,2673.4,3.74055]
[1730275384271,0.1275813,2673.6,2673.5,4.193145]
[1730275384704,0.1275813,2673.6,2673.5,4.26794474]
[1730275385020,0.1275813,2673.6,2673.5,4.979945]
[1730275385578,0.1275813,2673.6,2673.5,1.239535]
[1730275386137,0.1275813,2673.6,2673.5,4.979945]
[1730275386698,0.1275813,2673.6,2673.5,0.452735]
[1730275386930,0.1275813,2673.6,2673.3,3.74064]
[1730275387649,0.1275813,2673.6,2673.4,3.74054]
[1730275387805,0.1275813,2673.6,2673.2,4.54829639]
[1730275387806,0.1275813,2673.6,2673.2,8.28901639]
[1730275388425,0.1275813,2673.6,2673.3,3.74069]
[1730275389506,0.1275813,2673.6,2673.2,4.54842639]
[1730275389708,0.1275813,2673.6,2673.2,4.92587003]
[1730275389927,0.1275813,2673.6,2673.2,4.92581003]
[1730275390129,0.1275813,2673.6,2673.2,4.92579003]
[1730275390604,0.1275813,2673.6,2673.3,3.7406]
[1730275391007,0.1275813,2673.6,2673.2,4.92579003]
[1730275393121,0.1275813,2673.6,2673.2,3.79684639]
[1730275393421,0.1275813,2673.6,2673.2,0.05610639]
[1730275393609,0.8237,2673.5,2673.2,0.05610639]
[1730275393805,3.7407,2673.3,2672.9,0.08547512]
[1730275394005,0.7993,2673.4,2672.9,0.08547512]
[1730275394256,3.74111,2673.0,2672.9,0.08547512]
[1730275394706,4.51911902,2673.3,2672.9,0.08547512]
[1730275394907,3.74083,2673.2,2672.9,0.08547512]
[1730275395543,7.48179,2673.2,2672.9,0.08547512]
[1730275395711,0.77833902,2673.3,2672.9,0.08547512]
[1730275395712,3.74111,2673.0,2672.9,0.08547512]
[1730275395912,4.54757,2673.1,2672.9,0.08547512]
[1730275396119,8.28865,2673.1,2672.9,0.08547512]
[1730275396524,4.54757,2673.1,2672.5,4.11602]
[1730275396748,4.54757,2673.1,2672.5,4.1589344]
[1730275396749,3.74112,2673.0,2672.5,4.1589344]
[1730275396949,4.54757,2673.1,2672.5,4.1589344]
[1730275397116,8.28865,2673.1,2672.5,7.9006644]
[1730275397445,3.74091,2673.2,2672.7,3.74146]
[1730275398543,3.74079,2673.3,2672.8,3.74137]
[1730275398745,7.48161,2673.3,2672.8,3.74137]
[1730275398951,7.48161,2673.3,2672.6,8.25607]
[1730275398952,3.74093,2673.2,2672.6,8.25607]
[1730275399120,3.74093,2673.2,2672.7,0.86732844]
[1730275399331,3.74079,2673.3,2672.8,3.74132]
[1730275399845,3.74084,2673.2,2672.7,0.86732844]
[1730275400070,3.74084,2673.2,2672.7,4.60885844]
[1730275400255,0.8014,2673.4,2672.6,4.51445]
[1730275400256,3.74098,2673.1,2672.6,4.51445]
[1730275400547,3.53568,2673.1,2672.4,3.74187]
[1730275400765,3.74111,2673.0,2672.4,3.74187]
[1730275400940,3.74111,2673.0,2672.5,3.7418]
[1730275401477,3.53568,2673.1,2672.5,3.7418]
[1730275401963,7.27676,2673.1,2672.5,3.7418]
[1730275402572,3.24365018,2673.5,2672.5,0.07482891]
[1730275402767,3.74095,2673.2,2672.6,3.74159]
[1730275402953,3.74081,2673.3,2672.8,3.74139]
[1730275403154,3.74081,2673.3,2672.8,4.55649]
[1730275403542,3.74077,2673.3,2672.8,4.55649]
[1730275404047,3.74085,2673.2,2672.8,0.8151]
[1730275404481,3.74077,2673.3,2672.8,0.8151]
[1730275404681,3.74077,2673.3,2672.8,5.0495289]
[1730275404903,0.7683,2673.4,2672.8,1.3081789]
[1730275405183,0.7683,2673.4,2672.9,3.74123]
[1730275405184,4.50888,2673.4,2672.9,3.74123]
[1730275405379,3.74048,2673.5,2673.0,3.74104]
[1730275406257,0.1275813,2673.6,2673.1,3.7409]
[1730275406464,0.1275813,2673.6,2673.2,3.74073]
[1730275406677,0.1275813,2673.6,2673.2,0.7869]
[1730275406875,0.1275813,2673.6,2673.2,4.52772]
[1730275407894,0.1275813,2673.6,2673.2,0.7869]
[1730275409012,3.8678813,2673.6,2673.2,0.7869]
[1730275409711,0.1275813,2673.6,2673.2,1.31524556]
[1730275409920,0.1275813,2673.6,2673.2,5.05599556]
[1730275410117,0.1275813,2673.6,2673.3,3.74055]
[1730275411014,0.1275813,2673.6,2673.2,1.31524556]
[1730275412080,0.1275813,2673.6,2673.3,3.74069]
[1730275412294,0.1275813,2673.6,2673.4,0.50559356]
[1730275413984,0.1275813,2673.6,2673.2,1.31524556]
[1730275414403,3.74056,2673.4,2672.9,4.87067]
[1730275414715,3.74056,2673.4,2672.9,4.49642]
[1730275414716,3.74055,2673.4,2672.9,4.49642]
[1730275414914,4.5735,2673.5,2673.0,3.74103]
[1730275415111,4.5735,2673.5,2673.0,4.61408289]
[1730275415603,3.8679513,2673.6,2673.1,3.7409]
[1730275416107,0.1275813,2673.6,2673.2,3.74075]
[1730275416352,0.1275813,2673.6,2673.2,4.50024]
[1730275416553,0.1275813,2673.6,2673.3,0.824114]
[1730275416754,0.1275813,2673.6,2673.4,0.3743]